Cogmind - Beta 16.1 @@@ ROGUE MODE // 2026.03.31 @ 18:01:26 Player: Lazz Result: Destroyed by B9-8XT(R) with Subdweller Machine Gun Performance ------------- Evolutions (0) 0 Regions Visited (3) 600 Robots Destroyed (13) 65 Value Destroyed (187) 187 Prototype IDs (2) 40 Alien Tech Used (0) 0 Bonus (0) 0 TOTAL SCORE: 892 Bonus ------- None Cogmind --------- Core Integrity 0/250 Matter 278/300 Energy 73/100 System Corruption 0% Temperature Cool (0) Movement Core (700) Ox13 Location -10/Subcaves Parts ------- > --- POWER (1) -------- (None) > --- PROPULSION (2) --- (None) > --- UTILITY (2) ------ High-capacity Storage Unit > --- WEAPON (2) ------- Light Assault Rifle Light Assault Rifle > --- INVENTORY (20) --- Aluminum Leg Aluminum Leg Aluminum Leg Aluminum Leg Aluminum Leg Aluminum Leg Wheel Heat Sink Large Battery (200) Compact Matter Pod (150) Machine Analyzer Seismic Detector Light Assault Rifle Light Assault Rifle Peak State ------------ > --- POWER ------------ Light Nuclear Core > --- PROPULSION ------- Compact Wheel Compact Wheel > --- UTILITY ---------- High-capacity Storage Unit Reactive Plating > --- WEAPON ----------- Assault Rifle Assault Rifle > --- INVENTORY -------- Aluminum Leg Aluminum Leg Aluminum Leg Aluminum Leg Wheel Wheel Heat Sink Large Battery Medium Matter Pod Seismic Detector Light Assault Rifle Light Assault Rifle Light Assault Rifle Light Assault Rifle [Rating: 12] Favorites ----------- Power Light Nuclear Core Engine Light Ion Engine Power Core Light Nuclear Core Propulsion Compact Wheel Leg Aluminum Leg Wheel Compact Wheel Utility High-capacity Storage Unit Device Seismic Detector Storage High-capacity Storage Unit Protection Reactive Plating Weapon Assault Rifle Ballistic Gun Assault Rifle Build | -11 -10 -10 -10 ------- Run | Yrd Mat Min Sub Slots Evolved . | . . . . Power . | . . . . Propulsion . | . . . . Utility . | . . . . Weapon . | . . . . Parts Attached 16 | 8 . 5 3 Power 2 | 1 . 1 . Engine 1 | 1 . . . Core 1 | . . 1 . Reactor . | . . . . Propulsion 6 | 2 . 2 2 Treads . | . . . . Leg 2 | . . 2 . Wheel 4 | 2 . . 2 Hover . | . . . . Flight . | . . . . Utility 4 | 2 . 2 . Device 1 | 1 . . . Storage 2 | 1 . 1 . Processor . | . . . . Hackware . | . . . . Protection 1 | . . 1 . Artifact . | . . . . Weapon 4 | 3 . . 1 Energy Gun . | . . . . Energy Cannon . | . . . . Ballistic Gun 4 | 3 . . 1 Ballistic Cannon . | . . . . Launcher . | . . . . Special Weapon . | . . . . Impact Weapon . | . . . . Slashing Weapon . | . . . . Piercing Weapon . | . . . . Special Melee Weapon . | . . . . Unidentified Prototypes . | . . . . Parts Lost 7 | . . 1 6 Power 1 | . . . 1 Propulsion 3 | . . 1 2 Utility 1 | . . . 1 Weapon 2 | . . . 2 Highest Loss Streak 6 | . . 1 6 To Critical Strikes 1 | . . . 1 Average Backups 10 | 3 7 12 14 Power . | . 1 . . Propulsion 4 | 2 4 5 6 Utility 2 | . 1 3 4 Weapon 2 | . 1 3 3 Tool/Special . | . . . . Unused Backups 14 | . . 3 11 Power 1 | . . 1 . Propulsion 5 | . . . 5 Utility 6 | . . 2 4 Weapon 2 | . . . 2 Tool/Special . | . . . . Average Slot Usage (%) 97 | . 100 99 74 Engine 2 | . 14 1 . Core 10 | . . 12 7 Leg 14 | . . 16 17 Wheel 13 | . 28 11 8 Device 6 | . 14 5 . Storage 14 | . 14 14 14 Protection 7 | . . 8 10 Ballistic Gun 26 | . 28 28 15 Peak Build Rating 12 | 7 7 12 12 Average Rating 9 | 5 7 10 8 On Entrance 6 | . 7 7 12 Avg Prop Armor Cover (%) . | . . . . Naked Turns . | . . . . Heaviest Build 59 | 13 13 59 59 Greatest Support 32 | 32 32 32 20 Greatest Overweight (x) 3 | . . 3 3 Average Overweight (x) . | . . 1 1 Largest Inventory Capacity 20 | 8 8 20 20 Average Capacity 15 | 7 8 17 20 Most Carried 16 | 7 8 16 16 Average Carried 10 | 3 7 12 14 Final Capacity 20 | 8 8 20 20 Final Carried 14 | 7 8 14 14 Class Distribution -------------------- 100% | Mutant Dominant Class ---------------- Mutant | -10/Materials Mutant | -10/Mines Mutant | -10/Subcaves Resources | -11 -10 -10 -10 ----------- Run | Yrd Mat Min Sub Matter Collected 617 | 433 31 153 . Remotely . | . . . . Salvage Created 377 | 166 44 167 . Parts 27 | 14 2 11 . Haulers Intercepted . | . . . . Recyclers Shooed 2 | . . 2 . Parts Field Recycled . | . . . . Retrieved Matter . | . . . . Parts Self-Destructed 14 | . . . 14 Prevented . | . . . . Parts Restored . | . . . . Kills | -11 -10 -10 -10 ------- Run | Yrd Mat Min Sub Combat Hostiles Destroyed 6 | . 1 5 . Guns 6 | . 1 5 . Classes Destroyed 5 | 3 1 1 . Worker 1 | 1 . . . Tunneler 5 | 4 . 1 . Recycler 1 | 1 . . . Swarmer 3 | . . 3 . Grunt 3 | . 1 2 . Best Kill Streak 5 | 5 1 3 . Combat Bots Only 3 | . 1 3 . Max Kills in Single Turn 1 | 1 1 1 . Gunslinging . | . . . . Exploded . | . . . . Melee . | . . . . Uniques/NPCs Destroyed . | . . . . Combat | -11 -10 -10 -10 -------- Run | Yrd Mat Min Sub Hostile Shots Fired 87 | . 2 31 54 Missed 26 | . 1 9 16 Hits 61 | . 1 22 38 Projectile 61 | . 1 22 38 Critical Strikes 1 | . . . 1 Damage Taken 955 | . 7 266 682 Core 261 | . . 45 216 Absorbed by Shields . | . . . . Ignored by Resistances 21 | . . . 21 Core Remaining (%) 100 | 100 . . . Volleys Fired 33 | 11 3 18 1 Largest 2 | 2 2 2 2 Hottest 40 | 40 40 40 40 Shots Fired 66 | 22 6 36 2 Gun 66 | 22 6 36 2 Cannon . | . . . . Launcher . | . . . . Special . | . . . . Kinetic 66 | 22 6 36 2 Thermal . | . . . . Explosive . | . . . . Electromagnetic . | . . . . Robot Hit Streak 9 | 8 3 9 . Robot Miss Streak 3 | 3 2 3 . Penetration Max . | . . . . Secondary Targets . | . . . . Shots Hit Robots 38 | 13 4 21 . Core Hits 19 | 7 2 10 . Critical Kills 1 | 1 . . . Critical Parts Destroyed 1 | . . 1 . Critical Strikes 2 | 1 . 1 . Destroy 2 | 1 . 1 . Melee Attacks . | . . . . Impact . | . . . . Slashing . | . . . . Piercing . | . . . . Sneak Attacks . | . . . . Combat Hostiles . | . . . . Follow-up Attacks . | . . . . Damage Inflicted 494 | 170 55 269 . Guns 494 | 170 55 269 . Cannons . | . . . . Explosions . | . . . . Melee . | . . . . Ramming . | . . . . Kinetic 494 | 170 55 269 . Thermal . | . . . . Explosive . | . . . . Electromagnetic . | . . . . Impact . | . . . . Slashing . | . . . . Piercing . | . . . . Highest Corruption . | . . . . Average Corruption . | . . . . Corruption Purged . | . . . . Corruption Blocked . | . . . . Overload Shots . | . . . . Overflow Damage . | . . . . Projectiles . | . . . . Explosions . | . . . . Melee . | . . . . Knockbacks . | . . . . Impact . | . . . . Kinetic . | . . . . Secondary . | . . . . Self-Inflicted Damage . | . . . . Shots . | . . . . Rammed . | . . . . Targets Rammed . | . . . . Kicked . | . . . . Crushed . | . . . . Highest Temperature 68 | . . 68 . Average Temperature 38 | . . 38 . Received Heat Transfer 315 | . . 120 195 Siege Activations . | . . . . Martial Activations . | . . . . Shielding Activations . | . . . . Robots Disrupted . | . . . . Combat Hostiles . | . . . . Robots Corrupted . | . . . . Combat Hostiles . | . . . . Parts Fried . | . . . . Impact Corruptions . | . . . . Robots Melted . | . . . . Combat Hostiles . | . . . . Parts Melted . | . . . . Heat Transferred . | . . . . Parts Sabotaged . | . . . . Parts Stolen . | . . . . Parts Stripped . | . . . . Power Chain Reactions . | . . . . Alert | -11 -10 -10 -10 ------- Run | Yrd Mat Min Sub Maximum Alert Level . | . . . . Low Security (%) 100 | 100 100 100 . Level 1 . | . . . . Level 2 . | . . . . Level 3 . | . . . . Level 4 . | . . . . Level 5 . | . . . . High Security . | . . . . Max Security . | . . . . Peak Influence 70 | 25 15 70 . Initial 5 | . . 5 . Average 8 | 4 2 9 . Influence Increases 180 | 30 25 125 . Destroy 0b10 Robot/C 120 | . 20 100 . Destroy 0b10 Robot/NC 35 | 30 . 5 . Destroy Leader 20 | . . 20 . Successful Hack 5 | . 5 . . Influence Decreases 180 | 30 10 140 . Entered New Map 10 | . . 10 . Time Decay 160 | 30 10 120 . Lost Part 10 | . . 10 . Squads Dispatched 3 | . 2 1 . Investigation 2 | . 1 1 . Extermination . | . . . . Reinforcement 1 | . 1 . . Assault . | . . . . Garrison . | . . . . Intercept . | . . . . Searches Triggered . | . . . . Construction Impeded . | . . . . Haulers Reinforced . | . . . . Active Scanning Responses . | . . . . Cargo Convoy Interrupts . | . . . . Stealth | -11 -10 -10 -10 --------- Run | Yrd Mat Min Sub Distress Signals 2 | . 2 . . Communications Jammed . | . . . . Distress Signals . | . . . . Times Spotted 21 | . 6 8 7 Peak Tracking Total 5 | . 5 3 5 Tactical Retreats . | . . . . Traps | -11 -10 -10 -10 ------- Run | Yrd Mat Min Sub Traps Triggered . | . . . . Indirectly . | . . . . Trap Hack Attempts . | . . . . Triggered . | . . . . Disarmed . | . . . . Reprogrammed . | . . . . Reused . | . . . . Traps Extracted . | . . . . Installed . | . . . . Triggered . | . . . . Machines | -11 -10 -10 -10 ---------- Run | Yrd Mat Min Sub Machines Disabled . | . . . . Max in Single Turn . | . . . . Machines Repaired . | . . . . Machines Dismantled . | . . . . Machines Sabotaged . | . . . . Overloaded Fab Kills . | . . . . Hacking | -11 -10 -10 -10 --------- Run | Yrd Mat Min Sub Machines Accessed 3 | . 2 1 . Terminals 2 | . 2 . . Fabricators . | . . . . Repair Stations . | . . . . Recycling Units . | . . . . Scanalyzers . | . . . . Garrison Access . | . . . . Total Hacks 8 | . 7 1 . Successful 4 | . 3 1 . Failed 4 | . 4 . . Catastrophic . | . . . . Database Lockouts . | . . . . Manual 4 | . 4 . . Terminals 7 | . 7 . . Fabricators . | . . . . Repair Stations . | . . . . Recycling Units . | . . . . Scanalyzers . | . . . . Garrison Access . | . . . . Terminal Hacks 3 | . 2 1 . Prototype ID Bank 1 | . 1 . . Open Door 1 | . . 1 . Zone Layout 1 | . 1 . . Fabricator Hacks . | . . . . Repair Station Hacks . | . . . . Recycling Unit Hacks . | . . . . Scanalyzer . | . . . . Garrison Access Hacks . | . . . . Unauthorized Hacks 1 | . 1 . . Terminals 1 | . 1 . . Botnet 1 | . 1 . . Fabricators . | . . . . Repair Stations . | . . . . Recycling Units . | . . . . Scanalyzers . | . . . . Garrison Access . | . . . . Data Cores Recovered . | . . . . Used . | . . . . Hacking Detections 2 | . 2 . . Full Trace Events 2 | . 2 . . Feedback Events . | . . . . Feedback Blocked . | . . . . Robot Schematics Acquired . | . . . . Robots Built . | . . . . Authchips . | . . . . Time . | . . . . Total Robot Build Rating . | . . . . Part Schematics Acquired . | . . . . Parts Built . | . . . . Authchips . | . . . . Time . | . . . . Total Part Build Rating . | . . . . Part Studies Acquired . | . . . . Parts Repaired . | . . . . Time . | . . . . Parts Recycled . | . . . . Recycled Matter . | . . . . Retrieved Matter . | . . . . Retrieved Components . | . . . . Parts Scanalyzed . | . . . . Part Schematics Acquired . | . . . . Parts Damaged . | . . . . Bothacking | -11 -10 -10 -10 ------------ Run | Yrd Mat Min Sub Used RIF Installer . | . . . . Robots Hacked . | . . . . Non-combat . | . . . . Combat . | . . . . Robot Hacks Applied . | . . . . Relay Couplers Released . | . . . . Fabnet Peak Effective % . | . . . . Robots Rewired . | . . . . Allies Hacked . | . . . . Hacks Repelled . | . . . . Allies | -11 -10 -10 -10 -------- Run | Yrd Mat Min Sub Total Allies . | . . . . Largest Group . | . . . . Highest-Rated Group . | . . . . Highest-Rated Ally . | . . . . Total Orders . | . . . . Ally Attacks . | . . . . Total Damage . | . . . . Kills . | . . . . Allies Corrupted . | . . . . Allies Melted . | . . . . Intel | -11 -10 -10 -10 ------- Run | Yrd Mat Min Sub Active Infowar (turns) 416 | 42 91 283 . Seismic 416 | 42 91 283 . Robot Analysis Total . | . . . . Derelict Logs Recovered 1 | . . . 1 Drone Launches . | . . . . Drone Recoveries . | . . . . Exploration | -11 -10 -10 -10 ------------- Run | Yrd Mat Min Sub Turns Passed 1055 | 172 91 717 75 Spaces Moved 531 | 86 76 328 41 Core 3 | 3 . . . Treads . | . . . . Legs 142 | . . 126 16 Wheels 386 | 83 76 202 25 Hover . | . . . . Flight . | . . . . Fastest Speed 50 | 50 100 100 95 Average Speed 145 | 98 100 166 162 Slowest Speed 260 | 100 100 260 260 Overloaded Moves . | . . . . Propulsion Burnouts . | . . . . Robots Hopped . | . . . . Potential Cave-ins . | . . . . Cave-ins Triggered . | . . . . Exploration Rate (%) 30 | 5 25 87 5 Regions Visited 3 Branch Regions 2 Pre-discovered Areas 1 | . . . 1 Known Exits Taken . | . . . . Unknown Exits Taken 3 | 1 1 1 . Scrap Searched 1 | . . 1 . Spaces Dug . | . . . . Terrain Destroyed . | . . . . Melee . | . . . . Projectile . | . . . . AOE . | . . . . Terrain Rammed . | . . . . Walls Destroyed . | . . . . Machines Disabled . | . . . . Actions | -11 -10 -10 -10 --------- Run | Yrd Mat Min Sub Total 748 | 147 85 468 48 Wait 144 | 37 6 101 . Move 528 | 85 75 327 41 Hop . | . . . . Pick Up 19 | 6 1 10 2 Fast Attach 8 | 7 . 1 . Attach 3 | . . 1 2 Detach 1 | . . 1 . Swap 6 | 1 . 3 2 Drop 6 | . . 6 . Fire 33 | 11 3 18 1 Melee . | . . . . Ram . | . . . . Kick . | . . . . Crush . | . . . . Escape Stasis . | . . . . Rewire . | . . . . Trap . | . . . . Miscellaneous . | . . . . Route ------- -11/Scrapyard -10/Materials -10/Mines (discovered 3 exits: [*Mat x2] / [*Sub]) -10/Subcaves History --------- Turn | Location | Event 15 | -11/Scrapyard | Discovered new exit (range 16) 173 | -11/Scrapyard | Entered Materials 232 | -10/Materials | Discovered new exit (range 12) 264 | -10/Materials | Entered Mines 307 | -10/Mines | Build established: Mutant 329 | -10/Mines | Met a Derelict shopkeep closing up shop 428 | -10/Mines | Discovered new exit (range 5) 714 | -10/Mines | Discovered new exit (range 8) 965 | -10/Mines | Discovered new exit (range 6) 981 | -10/Mines | Entered Subcaves 982 | -10/Subcaves | Approached by a straggling Scientist 991 | -10/Subcaves | Learned location of Zion (-6) 991 | -10/Subcaves | Met a Zionite searching for "candidates" 1007 | -10/Subcaves | A Subdweller sparked back to life 1007 | -10/Subcaves | A Subdweller sparked back to life 1007 | -10/Subcaves | A Subdweller sparked back to life 1025 | -10/Subcaves | Core integrity fell below 50% 1039 | -10/Subcaves | Lost 3 allies 1047 | -10/Subcaves | Learned 4 Materials zone layouts 1049 | -10/Subcaves | Core integrity fell below 20% 1056 | -10/Subcaves | Destroyed by B9-8XT(R) with Subdweller Machine Gun Last Messages --------------- 01011_ Lgt. Nuclear Core destroyed. 01019_ Tech Extrapolator violently self-destructs. 01021_ Subatomizers dissect the Machine Analyzer. 01023_ Acquired Machine Analyzer. 01024_ BS-U0N(R) affixes Scrap Shield Fragment to Scrap Shield. 01028_ Acquired Wheel. 01031_ Assault Rifle destroyed. 01031_ Reactive Plating destroyed. 01034_ G-34 Mercenary destroyed. 01038_ Aluminum Leg fries itself beyond repair. 01043_ RD-WKL(R) emerges from the Twisted Machinery. 01047_ Acquired derelict log, extracted data. Data stored: Materials zone layouts (x4). 01049_ Wheel destroyed. 01055_ Critical hit (Destroy). 01055_ Wheel destroyed. Map ----- +----------------------------------------------------+ | ?????????# ###?????? ?????????????????????? | | ???# ????# #?????? #?????????????????????? | | ???# ### " ####???? ?????????????????????? | | ???## # ##??? ?????????????????????? | | ??# %" !% #### ?????????????????????? | | ??### ### [& # ##????????????????????? | | ????## #??## #=% " ## #????????????????????? | | ?????# ????# ## ### #????????????????????? | | ????# ????? #### ### #???????##????????????? | | ????## ???? ???## # ##????? #????????????? | | ?????#????? ????# # #???? #????????????? | | ??????????# ????## #???? #????????????? | | ??????????### ?????## ##???# ##???????????? | | ?????????????##??????#R #### #???????????? | | ?????????????????????#R #????????????? | | ?????????????????????# ## #?????????????? | | ????????????????????## R ##?????????????????? | | ????????????????????# ###??????????????????? | | ????????????????????### " ##???????????????????? | | ?????????????????????## " #???"???????????????? | | ?????????????????????# " ###"" ????????????? | | ?????????????????????# # ##""" "#????????????? | | ???????????????????? # R "" ""#?????????????? | | ???????????????????## ## R """""##?????????????? | | ????????????????????### #"""#"##??????????????? | | ??????????????????????###@######?#???????????????? | | ????????????????????????#"#??????????????????????? | | ????????????????????????""#??????????????????????? | | ???????????????????????"" #??????????????????????? | | ??????????????????????" #??????????????????????? | | ??????????????????????? ??????????????????????? | | ?????????????????????? ??????????????????????? | | ?????????????????????? ??????????????????????? | | ?????????????????????? ??????????????????????? | | ???????????????????????? ??????????????????????? | | ??????????????????????? ??????????????????????? | | ???????????????????????? ??????????????????????? | | ?????????????????????????????????????????????????? | | ?????????????????????????????????????????????????? | | ?????????????????????????????????????????????????? | | ?????????????????????????????????????????????????? | | ?????????????????????????????????????????????????? | | ?????????????????????????????????????????????????? | | ?????????????????????????????????????????????????? | | ?????????????????????????????????????????????????? | | ?????????????????????????????????????????????????? | | ?????????????????????????????????????????????????? | | ?????????????????????????????????????????????????? | | ?????????????????????????????????????????????????? | | ?????????????????????????????????????????????????? | +----------------------------------------------------+ Best States ------------- Heat Dissipation 25 Energy Generation 14 Energy Capacity 160 Matter Stores 300 Matter Capacity 300 Sight Range 16 Terrain Scan Density 10 Armor Coverage 150 Resistance: KI 20 Evasion (%) 41 Item Schematics ----------------- None Robot Schematics ------------------ None Fabricated ------------ Nothing Repaired ---------- Nothing Studied --------- None Alien Tech Used ----------------- None Achievements -------------- None Challenges ------------ None Game ------ Seed ZhirovGodStabilizer Manual? 0 Play Time 00:08:09 Cumulative 142.0 hours Start 2026.03.31 @ 17:54:40 End 2026.03.31 @ 18:01:26 Sessions 1 Manual Loads 0 Difficulty Rogue Special Mode None Game No. 208 Rogue 208 Adventurer 0 Explorer 0 Win Type - Total 1 Types 1/0/0/0/0/0/0/0/0/0 Lore% 65 Gallery% 56 Achievement% 42 Wizard Run 0 Options --------- Layout 2 ASCII 0 Keyboard 0 Movement Vi Keybinds 0 Fullscreen 1 Font 24/Smallcaps Map View 50x44 Zoom Use 0% Tactical HUD 1 Map Filters NONE Filters NONE Steam 1 RUN: 3dbf4d52-ba33-4199-9b5e-136c8d99d98d